Cogmind - Beta 15 @@@ ROGUE MODE // 2025.07.23 @ 00:45:01 Player: shapeshifter Result: Destroyed by Y-45 Defender with Beam Rifle Performance ------------- Evolutions (0) 0 Regions Visited (2) 400 Robots Destroyed (22) 110 Value Destroyed (325) 325 Prototype IDs (0) 0 Alien Tech Used (0) 0 Bonus (0) 0 TOTAL SCORE: 835 Bonus ------- None Cogmind --------- Core Integrity 0/250 Matter 280/300 Energy 100/100 System Corruption 0% Temperature Cool (9) Movement Core (100) Ox1 Location -10/Mines Parts ------- > --- POWER (1) -------- (None) > --- PROPULSION (2) --- (None) > --- UTILITY (2) ------ Small Storage Unit Weapon Shielding > --- WEAPON (2) ------- (None) > --- INVENTORY (8) ---- Light Treads High-capacity Matter Pod (200) Improved Terrain Scanner Weapon Shielding Tractor Beam Peak State ------------ > --- POWER ------------ Ion Engine > --- PROPULSION ------- Light Treads Light Treads > --- UTILITY ---------- Small Storage Unit Seismic Detector > --- WEAPON ----------- Small Laser Assault Rifle > --- INVENTORY -------- Light Ion Engine Aluminum Leg Aluminum Leg Wheel Compact Wheel Compact Wheel Improved Terrain Scanner Light Assault Rifle [Rating: 8] Favorites ----------- Power Ion Engine Engine Ion Engine Power Core Light Nuclear Core Propulsion Light Treads Treads Light Treads Wheel Compact Wheel Utility Small Storage Unit Device Seismic Detector Storage Small Storage Unit Protection Weapon Shielding Weapon Small Laser Energy Gun Small Laser Ballistic Gun Assault Rifle Build | -11 -10 -10 ------- Run | Yrd Mat Min Slots Evolved . | . . . Power . | . . . Propulsion . | . . . Utility . | . . . Weapon . | . . . Parts Attached 12 | 8 2 2 Power 2 | 1 . 1 Engine 1 | 1 . . Core 1 | . . 1 Reactor . | . . . Propulsion 3 | 2 1 . Treads 2 | 2 . . Leg . | . . . Wheel 1 | . 1 . Hover . | . . . Flight . | . . . Utility 4 | 2 1 1 Device 2 | 1 1 . Storage 1 | 1 . . Processor . | . . . Hackware . | . . . Protection 1 | . . 1 Artifact . | . . . Weapon 3 | 3 . . Energy Gun 1 | 1 . . Energy Cannon . | . . . Ballistic Gun 2 | 2 . . Ballistic Cannon . | . . . Launcher . | . . . Special Weapon . | . . . Impact Weapon . | . . . Slashing Weapon . | . . . Piercing Weapon . | . . . Special Melee Weapon . | . . . Unidentified Prototypes . | . . . Parts Lost 9 | . 6 3 Power 2 | . 1 1 Propulsion 3 | . 3 . Utility 1 | . 1 . Weapon 3 | . 1 2 Highest Loss Streak 9 | . 6 9 To Critical Strikes . | . . . Average Backups 6 | 6 7 4 Power . | . 1 . Propulsion 3 | 3 2 . Utility 1 | . 3 4 Weapon . | 1 . . Tool/Special . | . . . Unused Backups 7 | . 5 2 Power 1 | . 1 . Propulsion 4 | . 4 . Utility 2 | . . 2 Weapon . | . . . Tool/Special . | . . . Average Slot Usage (%) 93 | . 97 62 Engine 12 | . 14 . Core 1 | . . 11 Treads 23 | . 26 . Device 11 | . 13 . Storage 14 | . 14 14 Protection 1 | . . 11 Energy Gun 13 | . 14 11 Ballistic Gun 14 | . 14 14 Peak Build Rating 8 | 8 8 7 Average Rating 6 | 5 7 5 On Entrance 4 | . 8 4 Naked Turns . | . . . Heaviest Build 14 | 14 14 13 Greatest Support 40 | 40 40 3 Greatest Overweight (x) 4 | . 3 4 Average Overweight (x) . | . . 3 Largest Inventory Capacity 8 | 8 8 8 Average Capacity 7 | 7 8 8 Most Carried 8 | 8 8 5 Average Carried 6 | 6 7 4 Final Capacity 8 | 8 8 8 Final Carried 8 | 8 6 5 Class Distribution -------------------- 100% | Mutant Dominant Class ---------------- Mutant | -10/Materials Mutant | -10/Mines Resources | -11 -10 -10 ----------- Run | Yrd Mat Min Matter Collected 686 | 375 311 . Remotely 68 | . 68 . Salvage Created 728 | 244 427 57 Parts 54 | 25 26 3 Haulers Intercepted . | . . . Recyclers Shooed 1 | 1 . . Parts Field Recycled . | . . . Retrieved Matter . | . . . Parts Self-Destructed . | . . . Prevented . | . . . Kills | -11 -10 -10 ------- Run | Yrd Mat Min Combat Hostiles Destroyed 8 | . 7 1 Guns 8 | . 7 1 Classes Destroyed 7 | 3 3 1 Worker 2 | 1 1 . Builder 1 | . 1 . Tunneler 8 | 8 . . Recycler 3 | 1 2 . Swarmer 3 | . 3 . Grunt 4 | . 4 . Sentry 1 | . . 1 Best Kill Streak 5 | 1 5 1 Combat Bots Only 3 | . 3 1 Max Kills in Single Turn 1 | 1 1 1 Gunslinging . | . . . Exploded . | . . . Melee . | . . . Uniques/NPCs Destroyed . | . . . Combat | -11 -10 -10 -------- Run | Yrd Mat Min Hostile Shots Fired 128 | . 103 25 Missed 33 | . 28 5 Hits 95 | . 75 20 Projectile 95 | . 75 20 AOE 1 | . 1 . Critical Strikes 4 | . . 4 Damage Taken 1134 | . 830 304 Core 262 | . 152 110 Absorbed by Shields . | . . . Redirected to Shielding 24 | . . 24 Core Remaining (%) 100 | 100 . . Volleys Fired 78 | 33 37 8 Largest 2 | 2 2 2 Hottest 60 | 60 60 60 Shots Fired 146 | 66 70 10 Gun 146 | 66 70 10 Cannon . | . . . Launcher . | . . . Special . | . . . Kinetic 77 | 33 36 8 Thermal 69 | 33 34 2 Explosive . | . . . Electromagnetic . | . . . Robot Hit Streak 9 | 8 9 8 Robot Miss Streak 5 | 3 5 1 Penetration Max . | . . . Secondary Targets 2 | . 2 . Max Gunslinging Chain 1 | . 1 . Shots Hit Robots 80 | 31 41 8 Core Hits 33 | 11 19 3 Critical Kills . | . . . Critical Parts Destroyed . | . . . Critical Strikes . | . . . Melee Attacks . | . . . Impact . | . . . Slashing . | . . . Piercing . | . . . Sneak Attacks . | . . . Combat Hostiles . | . . . Follow-up Attacks . | . . . Damage Inflicted 912 | 373 467 72 Guns 912 | 373 467 72 Cannons . | . . . Explosions . | . . . Melee . | . . . Ramming . | . . . Kinetic 482 | 182 240 60 Thermal 430 | 191 227 12 Explosive . | . . . Electromagnetic . | . . . Impact . | . . . Slashing . | . . . Piercing . | . . . Highest Corruption . | . . . Average Corruption . | . . . Corruption Purged . | . . . Corruption Blocked . | . . . Overload Shots . | . . . Overflow Damage . | . . . Projectiles . | . . . Explosions . | . . . Melee . | . . . Knockbacks . | . . . Impact . | . . . Kinetic . | . . . Secondary . | . . . Self-Inflicted Damage . | . . . Shots . | . . . Rammed . | . . . Targets Rammed . | . . . Kicked . | . . . Crushed . | . . . Highest Temperature 108 | . 94 108 Average Temperature 45 | . 43 55 Received Heat Transfer 495 | . 333 162 Siege Activations . | . . . Martial Activations . | . . . Shielding Activations . | . . . Robots Disrupted . | . . . Combat Hostiles . | . . . Robots Corrupted . | . . . Combat Hostiles . | . . . Parts Fried . | . . . Impact Corruptions . | . . . Robots Melted . | . . . Combat Hostiles . | . . . Parts Melted . | . . . Heat Transferred 975 | 425 525 25 Parts Sabotaged . | . . . Parts Stolen . | . . . Parts Stripped . | . . . Power Chain Reactions . | . . . Alert | -11 -10 -10 ------- Run | Yrd Mat Min Maximum Alert Level . | . . . Low Security (%) 100 | 100 100 100 Level 1 . | . . . Level 2 . | . . . Level 3 . | . . . Level 4 . | . . . Level 5 . | . . . High Security . | . . . Max Security . | . . . Peak Influence 141 | 5 141 20 Initial 7 | . . 7 Average 27 | . 80 6 Influence Increases 309 | 50 239 20 Destroy 0b10 Robot/C 160 | . 140 20 Destroy 0b10 Robot/NC 70 | 50 20 . Destroy Leader 20 | . 20 . Successful Hack 8 | . 8 . Disable Machine 30 | . 30 . Destroy Structure 21 | . 21 . Influence Decreases 299 | 50 218 31 Entered New Map 14 | . . 14 Time Decay 215 | 50 158 7 Lost Part 70 | . 60 10 Squads Dispatched 1 | . 1 . Investigation 1 | . 1 . Extermination . | . . . Reinforcement . | . . . Assault . | . . . Garrison . | . . . Intercept . | . . . Searches Triggered . | . . . Construction Impeded . | . . . Haulers Reinforced . | . . . Active Scanning Responses . | . . . Cargo Convoy Interrupts . | . . . Stealth | -11 -10 -10 --------- Run | Yrd Mat Min Distress Signals . | . . . Communications Jammed . | . . . Distress Signals . | . . . Times Spotted 15 | . 13 2 Peak Tracking Total 4 | . 4 2 Tactical Retreats . | . . . Traps | -11 -10 -10 ------- Run | Yrd Mat Min Traps Triggered . | . . . Indirectly . | . . . Trap Hack Attempts . | . . . Triggered . | . . . Disarmed . | . . . Reprogrammed . | . . . Reused . | . . . Traps Extracted . | . . . Installed . | . . . Triggered . | . . . Machines | -11 -10 -10 ---------- Run | Yrd Mat Min Machines Disabled 2 | . 2 . Max in Single Turn 2 | . 2 . Machines Repaired . | . . . Machines Dismantled . | . . . Machines Sabotaged . | . . . Overloaded Fab Kills . | . . . Hacking | -11 -10 -10 --------- Run | Yrd Mat Min Machines Accessed 2 | . 2 . Terminals 2 | . 2 . Fabricators . | . . . Repair Stations . | . . . Recycling Units . | . . . Scanalyzers . | . . . Garrison Access . | . . . Total Hacks 6 | . 6 . Successful 3 | . 3 . Failed 3 | . 3 . Catastrophic 2 | . 2 . Database Lockouts . | . . . Manual 7 | . 7 . Terminals 6 | . 6 . Fabricators . | . . . Repair Stations . | . . . Recycling Units . | . . . Scanalyzers . | . . . Garrison Access . | . . . Terminal Hacks 1 | . 1 . Registered Components 1 | . 1 . Fabricator Hacks . | . . . Repair Station Hacks . | . . . Recycling Unit Hacks . | . . . Scanalyzer . | . . . Garrison Access Hacks . | . . . Unauthorized Hacks 2 | . 2 . Terminals 2 | . 2 . Botnet 2 | . 2 . Fabricators . | . . . Repair Stations . | . . . Recycling Units . | . . . Scanalyzers . | . . . Garrison Access . | . . . Data Cores Recovered . | . . . Used . | . . . Hacking Detections 2 | . 2 . Full Trace Events 1 | . 1 . Feedback Events . | . . . Feedback Blocked . | . . . Robot Schematics Acquired . | . . . Robots Built . | . . . Authchips . | . . . Time . | . . . Total Robot Build Rating . | . . . Part Schematics Acquired . | . . . Parts Built . | . . . Authchips . | . . . Time . | . . . Total Part Build Rating . | . . . Parts Repaired . | . . . Time . | . . . Parts Recycled . | . . . Recycled Matter . | . . . Retrieved Matter . | . . . Retrieved Components . | . . . Parts Scanalyzed . | . . . Part Schematics Acquired . | . . . Parts Damaged . | . . . Bothacking | -11 -10 -10 ------------ Run | Yrd Mat Min Used RIF Installer . | . . . Robots Hacked . | . . . Non-combat . | . . . Combat . | . . . Robot Hacks Applied . | . . . Relay Couplers Released . | . . . Fabnet Peak Effective % . | . . . Robots Rewired . | . . . Allies Hacked . | . . . Hacks Repelled . | . . . Allies | -11 -10 -10 -------- Run | Yrd Mat Min Total Allies . | . . . Largest Group . | . . . Highest-Rated Group . | . . . Highest-Rated Ally . | . . . Total Orders . | . . . Ally Attacks . | . . . Total Damage . | . . . Kills . | . . . Allies Corrupted . | . . . Allies Melted . | . . . Intel | -11 -10 -10 ------- Run | Yrd Mat Min Active Infowar (turns) 316 | 29 287 . Seismic 316 | 29 287 . Robot Analysis Total . | . . . Derelict Logs Recovered . | . . . Drone Launches . | . . . Drone Recoveries . | . . . Exploration | -11 -10 -10 ------------- Run | Yrd Mat Min Turns Passed 1036 | 651 346 39 Spaces Moved 489 | 338 142 9 Core 26 | 10 7 9 Treads 463 | 328 135 . Legs . | . . . Wheels . | . . . Hover . | . . . Flight . | . . . Fastest Speed 50 | 50 150 100 Average Speed 159 | 156 160 216 Slowest Speed 250 | 160 200 250 Overloaded Moves . | . . . Propulsion Burnouts . | . . . Robots Hopped . | . . . Potential Cave-ins . | . . . Cave-ins Triggered . | . . . Exploration Rate (%) 18 | 16 30 9 Regions Visited 2 Branch Regions 1 Pre-discovered Areas . | . . . Known Exits Taken . | . . . Unknown Exits Taken 2 | 1 1 . Scrap Searched . | . . . Spaces Dug . | . . . Terrain Destroyed 19 | . 19 . Melee . | . . . Projectile . | . . . AOE 19 | . 19 . Terrain Rammed . | . . . Walls Destroyed . | . . . Machines Disabled . | . . . Actions | -11 -10 -10 --------- Run | Yrd Mat Min Total 606 | 394 192 20 Wait . | . . . Move 487 | 337 141 9 Hop . | . . . Pick Up 21 | 15 5 1 Fast Attach . | . . . Attach 12 | 8 2 2 Detach 1 | 1 . . Swap 2 | . 2 . Drop 5 | . 5 . Fire 78 | 33 37 8 Melee . | . . . Ram . | . . . Kick . | . . . Crush . | . . . Escape Stasis . | . . . Rewire . | . . . Trap . | . . . Miscellaneous . | . . . Route ------- -11/Scrapyard -10/Materials -10/Mines History --------- Turn | Location | Event 4 | -11/Scrapyard | Discovered new exit (range 15) 652 | -11/Scrapyard | Entered Materials 653 | -10/Materials | Build established: Mutant 975 | -10/Materials | Discovered new exit (range 13) 983 | -10/Materials | Core integrity fell below 50% 998 | -10/Materials | Entered Mines 1020 | -10/Mines | Core integrity fell below 20% 1037 | -10/Mines | Destroyed by Y-45 Defender with Beam Rifle Last Messages --------------- 00985_ R-06 Scavenger collects Aluminum Leg. 00986_ K-01 Serf collects debris. 00988_ The unstable cave ceiling collapses. 00988_ K-01 Serf collects debris. 00989_ R-06 Scavenger collects Heat Sink. 00990_ K-01 Serf collects debris. 00992_ Lgt. Treads destroyed. 00993_ K-01 Serf collects debris. 00994_ Ion Engine destroyed. 00995_ K-01 Serf collects debris. LOCATION=UNKNOWN GOAL=ESCAPE Something is scanning the area. 01016_ Critical hit (Burn: +37). 01022_ Sml. Laser destroyed. 01025_ Critical hit (Burn: +37). 01025_ Lgt. Nuclear Core destroyed. 01029_ Y-45 Defender destroyed. 01034_ Lgt. Assault Rifle destroyed. 01036_ Acquired Lgt. Treads. Map ----- +----------------------------------------------------+ | | | | | | | | | | | | | | | | | | | | | | | | | | | | | ?????????????????????????????????????????????????? | | ?????????????????????????????????????????????????? | | ?????????????????????????????????????????????????? | | ?????????????????????????????????????????????????? | | ?????????????????????????????????????????????????? | | ?????????????????????????????????????????????????? | | ?????????????????????????????????????????????????? | | ?????????????????????????????????????????????????? | | ????????????????????????######???????????????????? | | ???????????????????????##"!!"##??????????????????? | | ???????????????????????#""!!""#??????????????????? | | ???????????????????????#%@= Y#??????????????????? | | ?????????????????????####! ##??????????????????? | | ????????????????????## ##++###??????????????????? | | ???????????????????## ##?????????????????? | | ???????????????????# #######???????????? | | ???????????????????# ?????????? | | ??????????????????## #######???????????? | | ?????????????????## ##?????????????????? | | ?????????????????# ##??????????????????? | | ?????????????????# ## #???????????????????? | | ??????????? ##? #???????????????????? | | ?????????# ##?? ??????????????????? | | ?????????######### ##??? ?????????????????? | | ?????????????????## #????? ????????????????? | | ??????????????????###?????? ???????????????? | | ???????????????????????????### ??????????????? | | ??????????????????????????????# ?????????????? | | ???????????????????????????????# ?????????????? | | ?????????????????????????????????????????????????? | | ?????????????????????????????????????????????????? | | ?????????????????????????????????????????????????? | | ?????????????????????????????????????????????????? | | ?????????????????????????????????????????????????? | | ?????????????????????????????????????????????????? | | ?????????????????????????????????????????????????? | +----------------------------------------------------+ Best States ------------- Heat Dissipation 25 Energy Generation 14 Energy Capacity 250 Matter Stores 300 Matter Capacity 300 Sight Range 16 Terrain Scan Density 10 Weapon Shielding 33 Evasion (%) 50 Recoil Reduction 2 Item Schematics ----------------- None Robot Schematics ------------------ None Fabricated ------------ Nothing Repaired ---------- Nothing Alien Tech Used ----------------- None Achievements -------------- None Challenges ------------ None Game ------ Seed CargoContainmentAirjet Manual? 0 Play Time 00:06:26 Cumulative 35.6 hours Start 2025.07.23 @ 00:28:22 End 2025.07.23 @ 00:45:01 Sessions 2 Manual Loads 0 Difficulty Rogue Special Mode None Game No. 91 Rogue 91 Adventurer 0 Explorer 0 Win Type - Total 0 Types 0/0/0/0/0/0/0/0/0/0 Lore% 33 Gallery% 33 Achievement% 26 Wizard Run 0 Options --------- Layout 1 ASCII 0 Keyboard 0 Movement Mouse Keybinds 0 Fullscreen 1 Font 24/Smallcaps Map View 50x35 Zoom Use 0% Tactical HUD 1 Map Filters NONE Filters NONE Steam 1 RUN: ee6e69d5-359c-435e-a230-65cce4f2d23b